bitfinex-derivatives/quotes_BNBF0:USTF0_20250807
["timestamp","ask_amount","ask_price","bid_price","bid_amount"]
[1754596783868,0.8611523,781.03,780.28,0.85227432]
[1754596784069,0.8611523,781.02,780.33,0.85227432]
[1754596784272,0.872,781.09,780.1,0.944]
[1754596784273,0.8611523,781.01,780.37,0.85227432]
[1754596784476,0.8611523,781.0,780.39,0.85227432]
[1754596784676,0.8611523,780.99,780.39,0.85227432]
[1754596784875,0.8611523,780.98,780.39,0.85227432]
[1754596785073,0.872,781.09,780.39,0.85227432]
[1754596785376,0.86118015,781.08,780.38,0.85227432]
[1754596785675,0.86118015,781.07,780.38,0.85227432]
[1754596785869,0.86118015,781.06,780.38,0.85227432]
[1754596786072,0.86118015,781.05,780.38,0.85227432]
[1754596786374,0.86118015,781.04,780.38,0.85227432]
[1754596786572,0.86118015,781.03,780.38,0.85227432]
[1754596786771,0.86118015,781.02,780.38,0.85227432]
[1754596786973,0.86118015,781.01,780.38,0.85227432]
[1754596787171,0.86118015,781.0,780.38,0.85227432]
[1754596787471,0.86118015,780.99,780.4,0.85227432]
[1754596787776,0.86118015,780.98,780.46,0.85227432]
[1754596787977,0.86118015,780.97,780.46,0.85227432]
[1754596788177,0.86118015,780.96,780.46,0.85227432]
[1754596788477,0.86118015,780.95,780.46,0.85227432]
[1754596788678,0.86118015,780.94,780.46,0.85227432]
[1754596788877,0.86118015,780.93,780.45,0.85227432]
[1754596789078,0.86118015,780.92,780.45,0.85227432]
[1754596789277,0.872,781.09,780.45,0.85227432]
[1754596789574,0.86106551,781.08,780.45,0.85227432]
[1754596789776,0.86106551,781.08,780.39,0.92]
[1754596789777,0.86106551,781.07,780.47,0.85227432]
[1754596789978,0.86106551,781.06,780.47,0.85227432]
[1754596790173,0.86106551,781.05,780.43,0.85227432]
[1754596790477,0.86106551,781.04,780.43,0.85227432]
[1754596790677,0.86106551,781.03,780.43,0.85227432]
[1754596790877,0.86106551,781.03,780.39,0.92]
[1754596790878,0.86106551,781.02,780.42,0.85227432]
[1754596791175,0.86106551,781.01,780.4,0.85227432]
[1754596791378,0.86106551,781.0,780.4,0.85227432]
[1754596791571,0.86106551,780.99,780.4,0.85227432]
[1754596791774,0.872,781.09,780.4,0.85227432]
[1754596791775,0.86106551,780.98,780.4,0.85227432]
[1754596791977,0.86106551,780.97,780.4,0.85227432]
[1754596792173,0.86106551,780.96,780.39,0.92]
[1754596792376,0.86106551,780.95,780.39,0.92]
[1754596792673,1.72940209,781.09,780.39,0.92]
[1754596792674,0.86106551,780.94,780.39,0.92]
[1754596792876,0.85740209,781.07,780.39,0.92]
[1754596792877,0.86106551,780.93,780.39,0.92]
[1754596793177,0.872,781.09,780.39,0.92]
[1754596793178,0.86106551,780.92,780.39,0.92]
[1754596793378,0.86106551,780.91,780.39,0.92]
[1754596793577,0.85740209,781.08,780.39,0.92]
[1754596793876,0.86094818,781.07,780.39,0.92]
[1754596794077,0.86099832,781.06,780.39,0.92]
[1754596794278,0.86099832,781.05,780.39,0.92]
[1754596794474,0.86099832,781.04,780.39,0.92]
[1754596794677,0.86099832,781.03,780.39,0.92]
[1754596794878,0.86099832,781.02,780.39,0.92]
[1754596795073,0.85740209,781.07,780.39,0.92]
[1754596795074,0.86099832,781.01,780.39,0.92]
[1754596795278,0.86099832,781.0,780.39,0.92]
[1754596795479,0.85740209,781.07,780.39,0.92]
[1754596795480,0.86099832,780.99,780.39,0.92]
[1754596795682,0.86099832,780.98,780.39,0.92]
[1754596795875,0.86099832,780.97,780.39,0.92]
[1754596796181,0.872,781.09,780.39,0.92]
[1754596796182,0.86099832,780.96,780.39,0.92]
[1754596796381,0.86099832,780.95,780.39,0.92]
[1754596796578,0.86099832,780.94,780.39,0.92]
[1754596796776,0.86099832,780.93,780.39,0.92]
[1754596797081,0.86099832,780.92,780.39,0.92]
[1754596797276,0.85740209,781.06,780.39,0.92]
[1754596797277,0.86099832,780.91,780.39,0.92]
[1754596797479,0.85740209,781.05,780.39,0.92]
[1754596797779,0.86089961,781.04,780.39,0.92]
[1754596797981,0.85740209,781.07,780.39,0.92]
[1754596797982,0.86089961,781.03,780.39,0.92]
[1754596798179,0.86089961,781.02,780.39,0.92]
[1754596798484,0.86089961,781.01,780.47,0.85227432]
[1754596798683,0.86089961,781.0,780.47,0.85227432]
[1754596798884,0.86089961,780.99,780.47,0.85227432]
[1754596799184,0.86089961,780.98,780.46,0.85227432]
[1754596799385,0.86089961,780.97,780.46,0.85227432]
[1754596799582,0.86089961,780.96,780.46,0.85227432]
[1754596799781,0.86089961,780.95,780.45,0.85227432]
[1754596799982,0.86089961,780.94,780.45,0.85227432]
[1754596800184,0.86089961,780.93,780.45,0.85227432]
[1754596800486,0.872,781.09,780.46,0.85227432]
[1754596800783,0.86081573,781.08,780.46,0.85227432]
[1754596800987,0.86081573,781.07,780.46,0.85227432]
[1754596801187,0.86081573,781.06,780.39,0.92]
[1754596801387,0.86081573,781.05,780.46,0.85605213]
[1754596801686,0.86081573,781.04,780.47,0.85605213]
[1754596801882,0.86081573,781.03,780.46,0.85605213]
[1754596802087,0.86081635,781.02,780.46,0.85605213]
[1754596802283,0.872,781.09,780.41,0.85605213]
[1754596802586,0.86072408,781.08,780.42,0.85605213]
[1754596802786,0.86072408,781.07,780.42,0.85605213]
[1754596802988,0.86072408,781.06,780.41,0.85605213]
[1754596803189,0.86072408,781.05,780.42,0.85605213]
[1754596803488,0.86078379,781.04,780.41,0.85605213]
[1754596803782,0.86078379,781.03,780.43,0.85605213]
[1754596803989,0.86078379,781.02,780.45,0.85605213]
[1754596804189,0.86078379,781.01,780.46,0.85605213]
[1754596804384,0.86078379,781.0,780.46,0.85605213]
[1754596804587,0.86078379,780.99,780.46,0.85605213]
[1754596804783,0.86078379,780.98,780.47,0.85605213]
[1754596804985,0.86078379,780.97,780.47,0.85605213]
[1754596805186,0.86078379,780.96,780.53,0.85605213]
[1754596805388,0.872,781.09,780.52,0.85605213]
[1754596805587,0.86066655,781.08,780.54,0.85605213]
[1754596805785,0.86066655,781.07,780.47,0.85605213]
[1754596805989,0.86066655,781.06,780.45,0.85605213]
[1754596806184,0.86066655,781.05,780.45,0.85605213]
[1754596806491,0.86066655,781.04,780.45,0.85605213]
[1754596806687,0.86066655,781.03,780.45,0.85605213]
[1754596806885,0.872,781.09,780.45,0.85605213]
[1754596807188,0.86054706,781.08,780.43,0.85605213]
[1754596807389,0.86054706,781.07,780.43,0.85605213]
[1754596807688,0.86054706,781.06,780.43,0.85605213]
[1754596807991,0.86054706,781.05,780.5,0.85605213]
[1754596808287,0.86054706,781.04,780.49,0.85605213]
[1754596808487,0.2228398,781.19,780.5,0.85605213]
[1754596808690,0.86033118,781.18,780.5,0.85605213]
[1754596808886,0.86033118,781.17,780.5,0.85605213]
[1754596809087,0.86033118,781.16,780.5,0.85605213]
[1754596809291,0.86033118,781.15,780.49,0.85605213]
[1754596809590,0.86033118,781.14,780.49,0.85605213]
[1754596809789,0.86033118,781.13,780.49,0.85605213]
[1754596809987,0.86024769,781.12,780.49,0.85605213]
[1754596810190,0.86024769,781.11,780.49,0.85605213]
[1754596810387,0.86024769,781.1,780.49,0.85605213]
[1754596810588,0.86024769,781.09,780.49,0.85605213]
[1754596810786,0.86024769,781.08,780.5,0.85605213]
[1754596810987,0.807,781.14,780.5,0.85605213]
[1754596811192,0.86016843,781.13,780.49,0.85605213]
[1754596811392,0.86016843,781.12,780.49,0.85605213]
[1754596811593,0.86016843,781.11,780.49,0.85605213]
[1754596811890,0.86016843,781.1,780.49,0.85605213]
[1754596812093,0.86016843,781.09,780.49,0.85605213]
[1754596812292,0.86016843,781.08,780.48,0.85605213]
[1754596812489,0.86016843,781.07,780.49,0.85605213]
[1754596812692,0.86016843,781.06,780.49,0.85605213]
[1754596812892,0.807,781.14,780.49,0.85605213]
[1754596813189,0.86002971,781.13,780.48,0.85605213]
[1754596813388,0.86002971,781.12,780.48,0.85605213]
[1754596813689,0.86002971,781.11,780.48,0.85605213]
[1754596813889,0.86002971,781.1,780.47,0.85605213]
[1754596814089,0.86002971,781.09,780.47,0.85605213]
[1754596814289,0.86002971,781.08,780.48,0.85605213]
[1754596814492,0.86002971,781.07,780.47,0.85605213]
[1754596814693,0.807,781.14,780.47,0.85605213]
[1754596814893,0.85990561,781.13,780.47,0.85605213]
[1754596815192,0.85990561,781.12,780.46,0.85605213]
[1754596815393,0.85990561,781.11,780.46,0.85605213]
[1754596815593,0.85990561,781.1,780.46,0.85605213]
[1754596815788,0.85990561,781.09,780.45,0.85605213]
[1754596815993,0.807,781.14,780.45,0.85605213]
[1754596815994,0.85990561,781.08,780.45,0.85605213]
[1754596816187,0.85990561,781.07,780.46,0.85605213]
[1754596816389,0.807,781.14,780.46,0.85605213]
[1754596816594,0.85977368,781.13,780.43,0.85605213]
[1754596816793,0.85977368,781.12,780.43,0.85605213]
[1754596817089,0.85977368,781.11,780.43,0.85605213]
[1754596817293,0.85977368,781.1,780.41,0.85605213]
[1754596817493,0.85977368,781.09,780.41,0.85605213]
[1754596817690,0.85977368,781.08,780.4,0.85605213]
[1754596817990,0.807,781.14,780.4,0.85605213]
[1754596818290,0.85974837,781.13,780.4,0.85605213]
[1754596818491,0.85974837,781.12,780.4,0.85605213]
[1754596818692,0.807,781.14,780.4,0.85605213]
[1754596818693,0.85974837,781.11,780.4,0.85605213]
[1754596818892,0.85974837,781.1,780.4,0.85605213]
[1754596819195,0.85974837,781.09,780.41,0.981]
[1754596819388,0.85974837,781.08,780.41,0.981]
[1754596819591,0.85974837,781.07,780.41,0.981]
[1754596819790,0.85974837,781.06,780.41,0.981]
[1754596820091,0.8598097,781.05,780.41,0.981]
[1754596820391,0.8598097,781.04,780.41,0.981]
[1754596820591,0.8598097,781.03,780.41,0.981]
[1754596820892,0.8598097,781.02,780.41,0.981]
[1754596821089,0.807,781.14,780.41,0.981]
[1754596821291,0.85983358,781.13,780.41,0.981]
[1754596821490,0.85983358,781.12,780.41,0.981]
[1754596821694,0.85983358,781.11,780.41,0.981]
[1754596821995,0.85983358,781.1,780.41,0.981]
[1754596822193,0.85983358,781.09,780.41,0.981]
[1754596822393,0.85983358,781.08,780.41,0.981]
[1754596822591,0.85983358,781.07,780.41,0.981]
[1754596822794,0.85983358,781.06,780.41,0.981]
[1754596822992,0.85983358,781.05,780.41,0.981]
[1754596823196,0.85983358,781.04,780.41,0.981]
[1754596823496,0.85983358,781.03,780.41,0.981]
[1754596823697,0.85983358,781.02,780.41,0.981]
[1754596823897,0.85983358,781.01,780.41,0.981]
[1754596824194,0.85983358,781.0,780.41,0.981]
[1754596824394,0.85983358,780.99,780.41,0.981]
[1754596824595,0.85983358,780.98,780.41,0.981]
[1754596824794,0.85983358,780.97,780.41,0.981]
[1754596824992,0.85983358,780.96,780.41,0.981]
[1754596825294,0.85983358,780.95,780.41,0.981]
[1754596825492,0.85983358,780.94,780.41,0.981]
[1754596825794,0.85983358,780.93,780.41,0.981]
[1754596825996,0.807,781.14,780.41,0.981]
[1754596826193,0.8600517,781.13,780.41,0.981]
[1754596826393,0.8600517,781.12,780.41,0.981]
[1754596826595,0.8600517,781.11,780.41,0.981]
[1754596826798,0.8600517,781.1,780.41,0.981]
[1754596827000,0.8600517,781.09,780.41,0.981]
[1754596827198,0.8600517,781.08,780.41,0.981]
[1754596827399,0.8600517,781.07,780.41,0.981]
[1754596827699,0.8600517,781.06,780.41,0.981]
[1754596827900,0.8600517,781.05,780.41,0.981]
[1754596828101,0.8600517,781.04,780.41,0.981]
[1754596828297,0.8600517,781.03,780.41,0.981]
[1754596828497,0.8600517,781.02,780.41,0.981]
[1754596828800,0.8600517,781.01,780.41,0.981]
[1754596828996,0.2228398,781.19,780.41,0.981]
[1754596829199,0.86000436,781.18,780.41,0.981]
[1754596829502,0.2228398,781.19,780.41,0.981]
[1754596829802,0.86005315,781.18,780.41,0.981]
[1754596829997,0.86005315,781.17,780.41,0.981]
[1754596830201,0.86005315,781.16,780.41,0.981]
[1754596830400,0.2228398,781.19,780.41,0.981]
[1754596830401,0.86005315,781.15,780.41,0.981]
[1754596830602,0.86005315,781.14,780.41,0.981]
[1754596830798,0.86005315,781.13,780.41,0.981]
[1754596830999,0.86005315,781.12,780.42,0.85605213]
[1754596831205,0.86005315,781.11,780.49,0.85605213]
[1754596831400,0.86005315,781.1,780.49,0.85605213]
[1754596831599,0.2228398,781.19,780.5,0.85605213]
[1754596831600,0.86005315,781.09,780.5,0.85605213]
[1754596831800,0.86005315,781.08,780.53,0.85605213]
[1754596832099,0.86005315,781.08,780.41,0.981]
[1754596832100,0.86260776,781.33,780.55,0.85605213]
[1754596832304,1.0828254,781.32,780.53,0.85605213]
[1754596832503,0.86001842,781.31,780.54,0.85605213]
[1754596832701,0.86001842,781.3,780.57,0.85605213]
[1754596832902,0.86001842,781.29,780.57,0.85605213]
[1754596833104,0.86001842,781.28,780.56,0.85605213]
[1754596833307,0.86001842,781.27,780.56,0.85605213]
[1754596833504,0.86001842,781.26,780.56,0.85605213]
[1754596833805,0.86001842,781.25,780.62,0.85605213]
[1754596834006,0.86001842,781.24,780.49,1.1466494]
[1754596834206,0.86001842,781.23,780.62,0.85510997]
[1754596834503,0.86001842,781.23,779.86,2.8667225]
[1754596834504,0.86001842,781.22,780.61,0.85510997]
[1754596834701,0.86001842,781.21,780.6,0.85510997]
[1754596834901,0.22280698,781.32,780.6,0.85510997]
[1754596834902,0.86001842,781.2,780.6,0.85510997]
[1754596835106,0.86001842,781.19,780.6,0.85510997]
[1754596835304,0.86001842,781.18,780.6,0.85510997]
[1754596835506,0.86001842,781.17,780.59,0.85510997]
[1754596835805,0.86001842,781.16,780.59,0.85510997]
[1754596836005,0.86001842,781.15,780.59,0.85510997]
[1754596836304,0.86001842,781.14,780.59,0.85510997]
[1754596836504,0.86001842,781.13,780.59,0.85510997]
[1754596836705,0.86001842,781.12,780.59,0.85510997]
[1754596836905,0.86001842,781.11,780.59,0.85510997]
[1754596837102,0.86001842,781.1,780.6,1.025]
[1754596837309,0.86001842,781.09,780.6,1.025]
[1754596837507,0.22280698,781.32,780.6,1.025]
[1754596837508,1.08414862,781.32,780.6,1.025]
[1754596837702,0.8592571,781.31,780.6,1.025]
[1754596838006,1.08414862,781.32,780.6,1.025]
[1754596838204,0.8592571,781.31,780.6,1.025]
[1754596838407,0.8592571,781.3,780.6,1.025]
[1754596838602,0.8592571,781.29,780.6,1.025]
[1754596839011,0.8592571,781.28,780.6,1.025]
[1754596839211,0.8592571,781.27,780.6,1.025]
[1754596839511,0.8592571,781.26,780.6,1.025]
[1754596839711,0.8592571,781.25,780.6,1.025]
[1754596839912,0.8592571,781.24,780.6,1.025]
[1754596840115,0.8592571,781.23,780.6,1.025]
[1754596840412,0.8592571,781.22,780.6,1.025]
[1754596840718,0.8592571,781.21,780.6,1.025]
[1754596840908,0.8592571,781.2,780.6,1.025]
[1754596841214,0.85931776,781.19,780.6,1.025]
[1754596841414,0.85931776,781.18,780.6,1.025]
[1754596841610,0.85931776,781.17,780.6,1.025]
[1754596841815,0.85931776,781.16,780.6,1.025]
[1754596842113,0.85931776,781.15,780.6,1.025]
[1754596842410,0.85931776,781.14,780.6,1.025]
[1754596842712,0.85931776,781.13,780.6,1.025]
[1754596842911,0.22280698,781.32,780.6,1.025]
[1754596843114,0.85937986,781.31,780.6,1.025]
[1754596843411,0.85937986,781.3,780.6,1.025]
[1754596843609,0.85937986,781.29,780.6,1.025]
[1754596843809,0.85937986,781.28,780.6,1.025]
[1754596844012,0.85937986,781.27,780.6,1.025]
[1754596844211,0.85937986,781.26,780.6,1.025]
[1754596844413,0.85937986,781.25,780.6,1.025]
[1754596844613,0.85937986,781.24,780.6,1.025]
[1754596844816,0.85937986,781.23,780.6,1.025]
[1754596845017,1.06,781.35,780.6,1.025]
[1754596845214,0.85927718,781.34,780.6,1.025]
[1754596845520,0.85927718,781.33,780.6,1.88031871]
[1754596845713,0.85927718,781.32,780.67,0.85531871]
[1754596845916,0.85927718,781.31,780.69,0.85531871]
[1754596846218,1.06,781.35,780.67,0.85531871]
[1754596846516,1.06,781.35,780.66,0.85531871]
[1754596847118,1.06,781.35,780.65,0.85531871]
[1754596847916,1.06,781.35,780.66,0.85531871]
[1754596848117,1.06,781.35,780.65,0.85531871]
[1754596848518,1.06,781.35,780.6,1.025]
[1754596848819,1.06,781.35,780.65,0.85386693]
[1754596849017,1.06,781.35,780.64,0.85386693]
[1754596849419,1.06,781.35,780.63,0.85386693]
[1754596849622,1.06,781.35,780.64,0.85386693]
[1754596850319,1.06,781.35,780.63,0.85386693]
[1754596851117,1.06,781.35,780.6,1.025]
[1754596851118,1.06,781.35,780.62,0.85386693]
[1754596851919,1.06,781.35,780.63,0.85386693]
[1754596852120,1.06,781.35,780.69,0.85386693]
[1754596853224,1.06,781.35,780.7,0.85386693]
[1754596853626,1.06,781.35,780.68,0.85386693]
[1754596853824,1.06,781.35,780.73,0.85386693]
[1754596854223,1.06,781.35,780.72,0.85386693]
[1754596854825,1.06,781.35,780.73,0.85386693]
[1754596855227,1.06,781.35,780.72,0.85386693]
[1754596856626,0.22275065,781.55,780.72,0.85386693]
[1754596856824,0.85708417,781.54,780.73,1.108]
[1754596857026,0.85708417,781.53,780.73,1.108]
[1754596857329,0.85708417,781.52,780.73,1.108]
[1754596857526,0.85708417,781.51,780.73,1.108]
[1754596857730,0.85708417,781.5,780.73,1.108]
[1754596857931,0.85708417,781.49,780.73,1.108]
[1754596858126,0.85708417,781.48,780.73,1.108]
[1754596858330,0.85708417,781.47,780.73,1.108]
[1754596858529,0.85708417,781.46,780.73,1.108]
[1754596858731,0.85708417,781.45,780.73,1.108]
[1754596858928,0.85708417,781.44,780.73,1.108]
[1754596859132,1.07775065,781.55,780.73,1.108]
[1754596859332,0.85683894,781.54,780.73,1.108]
[1754596859532,0.85683894,781.53,780.73,1.108]
[1754596859730,0.85683894,781.52,780.73,1.108]
[1754596860029,0.85683894,781.51,780.73,1.108]
[1754596860330,0.85683894,781.5,780.73,1.108]
[1754596860533,0.85683894,781.49,780.73,1.108]
[1754596860731,0.85683894,781.48,780.73,1.108]
[1754596860935,0.85683894,781.47,780.73,1.108]
[1754596861137,0.85683894,781.46,780.73,1.108]
[1754596861434,0.85683894,781.45,780.73,1.108]
[1754596861634,0.85683894,781.44,780.73,1.108]
[1754596861832,0.85683894,781.43,780.73,1.108]
[1754596862038,0.85683894,781.42,780.73,1.108]
[1754596862332,1.07775065,781.55,780.73,1.108]
[1754596862536,0.85661145,781.54,780.73,1.108]
[1754596862737,0.85661145,781.53,780.73,1.108]
[1754596863036,0.85661145,781.52,780.73,1.108]
[1754596863237,0.85661145,781.51,780.73,1.108]
[1754596863533,0.85661145,781.5,780.73,1.108]
[1754596863736,1.07775065,781.55,780.73,1.108]
[1754596863937,0.85656433,781.54,780.73,1.108]
[1754596864138,0.85656433,781.53,780.73,1.108]
[1754596864337,0.85651382,781.52,780.73,1.108]
[1754596864535,0.85651382,781.51,780.73,1.108]
[1754596864734,0.85651382,781.5,780.73,1.108]
[1754596864932,1.07775065,781.55,780.73,1.108]
[1754596864933,0.85651382,781.49,780.73,1.108]
[1754596865138,0.85651382,781.48,780.73,1.108]
[1754596865333,0.85651382,781.47,780.73,1.108]
[1754596865537,0.85651382,781.46,780.73,1.108]
[1754596865838,1.07775065,781.55,780.73,1.108]
[1754596865839,0.85651382,781.45,780.73,1.108]
[1754596866034,0.85651382,781.44,780.73,1.108]
[1754596866235,0.85651382,781.43,780.73,1.108]
[1754596866434,0.85651382,781.42,780.73,1.108]
[1754596866639,1.07775065,781.55,780.73,1.108]
[1754596866835,0.85642539,781.54,780.73,1.108]
[1754596867133,0.85642539,781.53,780.73,1.108]
[1754596867333,0.85642539,781.52,780.73,1.108]
[1754596867535,0.85642539,781.51,780.73,1.108]
[1754596867738,0.85642539,781.5,780.73,1.108]
[1754596868037,0.85642539,781.49,780.73,1.108]
[1754596868240,0.85642539,781.48,780.73,1.108]
[1754596868439,0.85642539,781.47,780.73,1.108]
[1754596868636,0.85642539,781.46,780.73,1.108]
[1754596868839,0.85642539,781.45,780.73,1.108]
[1754596869040,0.85642539,781.44,780.73,1.108]
[1754596869341,0.85642539,781.43,780.73,1.108]
[1754596869538,0.85642539,781.42,780.73,1.108]
[1754596869836,1.07775065,781.55,780.73,1.108]
[1754596870439,0.85568721,781.54,780.73,1.108]
[1754596870643,0.85568721,781.53,780.73,1.108]
[1754596870840,0.85568721,781.52,780.73,1.108]
[1754596871041,0.85568721,781.51,780.73,1.108]
[1754596871340,0.85568721,781.5,780.73,1.108]
[1754596871641,0.85568721,781.49,780.73,1.108]
[1754596871840,0.85568721,781.48,780.73,1.108]
[1754596872037,0.85568721,781.47,780.73,1.108]
[1754596872238,0.85568721,781.46,780.73,1.108]
[1754596872542,0.85568721,781.45,780.73,1.108]
[1754596872739,1.07775065,781.55,780.73,1.108]
[1754596873039,0.85558098,781.54,780.73,1.108]
[1754596873242,0.85557761,781.53,780.73,1.108]
[1754596873540,0.85557761,781.52,780.73,1.108]
[1754596873742,0.85557761,781.51,780.73,1.108]
[1754596874043,0.85557761,781.5,780.73,1.108]
[1754596874342,0.85557761,781.49,780.73,1.108]
[1754596874540,0.85557761,781.48,780.73,1.108]
[1754596874739,0.85557761,781.47,780.73,1.108]
[1754596874944,0.85557761,781.46,780.73,1.108]
[1754596875139,1.07775065,781.55,780.73,1.108]
[1754596875140,0.85557761,781.45,780.73,1.108]
[1754596875340,0.85557761,781.44,780.73,1.108]
[1754596875542,0.85557761,781.43,780.73,1.108]
[1754596875744,0.85557761,781.42,780.73,1.108]
[1754596875939,0.85557761,781.41,780.73,1.108]
[1754596876244,1.07775065,781.55,780.73,1.108]
[1754596876438,0.85552029,781.54,780.73,1.108]
[1754596876644,0.85552029,781.53,780.73,1.108]
[1754596876844,0.85552029,781.52,780.73,1.108]
[1754596877042,0.85552029,781.51,780.73,1.108]
[1754596877239,0.85552029,781.5,780.73,1.108]
[1754596877539,0.85552029,781.49,780.73,1.108]
[1754596877841,0.85552029,781.48,780.73,1.108]
[1754596878045,0.85552029,781.47,780.73,1.108]
[1754596878345,0.85552029,781.46,780.73,1.108]
[1754596878644,0.85552029,781.45,780.73,1.108]
[1754596878940,0.85552029,781.44,780.73,1.108]
[1754596879144,0.85552029,781.43,780.73,1.108]
[1754596879345,0.85552029,781.42,780.73,1.108]
[1754596879545,0.85552029,781.41,780.73,1.108]
[1754596879745,0.85560189,781.4,780.73,1.108]
[1754596879945,1.07775065,781.55,780.73,1.108]
[1754596880146,0.85559893,781.54,780.73,1.108]
[1754596880441,0.85559893,781.53,780.73,1.108]
[1754596880640,0.85559893,781.52,780.73,1.108]
[1754596880841,0.85559893,781.51,780.73,1.108]
[1754596881041,0.85559893,781.5,780.73,1.108]
[1754596881244,0.85559893,781.49,780.73,1.108]
[1754596881443,0.85559893,781.48,780.73,1.108]
[1754596881642,0.85559893,781.54,780.73,1.108]
[1754596881846,1.07775065,781.55,780.73,1.108]
[1754596882041,0.85575038,781.54,780.73,1.108]
[1754596882240,0.85575038,781.53,780.73,1.108]
[1754596882545,0.85575038,781.52,780.73,1.108]
[1754596882742,0.85575038,781.51,780.73,1.108]
[1754596882947,0.85575038,781.5,780.73,1.108]
[1754596883143,0.85575038,781.49,780.73,1.108]
[1754596883344,0.85575038,781.48,780.73,1.108]
[1754596883549,0.85575038,781.47,780.73,1.108]
[1754596883750,0.85575038,781.46,780.69,0.85386693]
[1754596884045,0.85575038,781.45,780.69,0.85386693]
[1754596884246,0.85575038,781.44,780.69,0.85386693]
[1754596884445,0.85575038,781.43,780.69,0.85386693]
[1754596884646,0.85575038,781.42,780.69,0.85386693]
[1754596884846,1.07775065,781.55,780.69,0.85386693]
[1754596885049,0.85611535,781.54,780.69,0.85386693]
[1754596885250,0.85611535,781.53,780.7,0.85386693]
[1754596885446,0.85611535,781.52,780.7,0.85386693]
[1754596885648,0.85611535,781.51,780.7,0.85386693]
[1754596885851,0.85611535,781.5,780.7,0.85386693]
[1754596886050,0.85611535,781.49,780.7,0.85386693]
[1754596886351,0.85611535,781.48,780.72,0.85386693]
[1754596886551,0.85611535,781.47,780.72,0.85386693]
[1754596886747,0.85611535,781.46,780.72,0.85386693]
[1754596886948,0.85611535,781.45,780.72,0.85386693]
[1754596887149,0.85611535,781.44,780.73,1.70386693]
[1754596887347,0.85611535,781.43,780.73,1.70386693]
[1754596887551,0.85611535,781.42,780.73,1.70386693]
[1754596887748,1.07775065,781.55,780.73,1.70386693]
[1754596887953,0.85688265,781.54,780.73,1.70386693]
[1754596888148,0.85688265,781.53,780.74,0.85386693]
[1754596888352,0.85688265,781.52,780.73,1.70386693]
[1754596888552,0.85688265,781.51,780.73,1.70386693]
[1754596888853,0.85688265,781.5,780.73,1.70386693]
[1754596889048,0.85688265,781.49,780.73,1.70386693]
[1754596889346,0.85688265,781.48,780.74,0.85386693]
[1754596889547,1.07775065,781.55,780.74,0.85386693]
[1754596889548,0.85688265,781.47,780.74,0.85386693]
[1754596889849,0.85688265,781.46,780.77,0.85386693]
[1754596890053,0.85688265,781.45,780.77,0.85386693]
[1754596890352,0.85688265,781.44,780.78,0.85386693]
[1754596890549,0.85688265,781.43,780.78,0.85386693]
[1754596890753,1.07775065,781.55,780.78,0.85386693]
[1754596891049,0.85763877,781.54,780.78,0.85386693]
[1754596891253,0.85763877,781.53,780.79,0.85386693]
[1754596891452,0.85763877,781.52,780.79,0.85386693]
[1754596891652,0.85763877,781.51,780.79,0.85386693]
[1754596891953,0.85763877,781.5,780.79,0.85386693]
[1754596892254,0.85763877,781.49,780.8,0.85386693]
[1754596892552,0.85763877,781.48,780.8,0.85386693]
[1754596892751,0.85763877,781.47,780.8,0.85386693]
[1754596892952,0.85763877,781.46,780.8,0.85386693]
[1754596893150,0.85763877,781.45,780.8,0.85386693]
[1754596893351,0.85763877,781.44,780.8,0.85386693]
[1754596893655,1.77963877,781.43,780.8,0.85386693]
[1754596893856,0.85763877,781.42,780.8,0.85386693]
[1754596895151,0.85763877,781.42,780.81,0.85386693]
[1754596895555,0.85763877,781.42,780.8,0.85386693]
[1754596896158,0.85763877,781.42,780.81,0.85386693]
[1754596897455,0.85763877,781.42,780.79,0.85386693]
[1754596897952,0.85763877,781.42,780.73,0.85]
[1754596897953,0.85763877,781.42,780.78,0.85386693]
[1754596898358,0.85763877,781.42,780.77,0.85386693]
[1754596899357,0.85763877,781.42,780.73,1.70386693]
[1754596899753,0.85902985,781.41,780.73,1.70386693]
[1754596899956,0.85902985,781.4,780.73,1.70386693]
[1754596900257,0.85902985,781.39,780.73,0.85]